fUST/lending_fUST_20250306
["ID","MTS","AMOUNT","RATE_DAILY","PERIOD"]
[355473643,1741194632537,-231.65040481,0.00038356,9]
[355473644,1741194632547,-500.0,0.00038356,9]
[355473645,1741194632557,-591.02857737,0.00038356,9]
[355473646,1741194632567,-500.0,0.00038356,9]
[355473647,1741194632576,-500.0,0.00038356,9]
[355473648,1741194632588,-500.0,0.00038356,9]
[355473649,1741194632599,-500.0,0.00038356,9]
[355473650,1741194632608,-506.53608484,0.00038356,9]
[355473651,1741194632618,-517.68853372,0.00038356,9]
[355473652,1741194632628,-500.0,0.00038356,9]
[355473653,1741194632638,-520.66534353,0.00038356,9]
[355473654,1741194632648,-395.55146878,0.00038356,9]
[355473655,1741194632658,-531.09065085,0.00038356,9]
[355473656,1741194632667,-500.0,0.00038356,9]
[355473657,1741194632678,-508.13480804,0.00038356,9]
[355473658,1741194632688,-500.0,0.00038356,9]
[355473659,1741194632697,-500.0,0.00038356,2]
[355473660,1741194632707,-500.0,0.00038356,120]
[355473661,1741194632716,-226.89709225,0.00038356,9]
[355473662,1741194632734,-282.65666557,0.00038356,9]
[355473663,1741194632744,-515.56245957,0.00038356,9]
[355473664,1741194632754,-500.0,0.00038356,9]
[355473665,1741194632763,-500.0,0.00038356,9]
[355473666,1741194632773,-500.0,0.00038356,9]
[355473667,1741194632783,-500.0,0.00038356,9]
[355473668,1741194632792,-500.0,0.00038356,9]
[355473669,1741194632801,-16.07396122,0.00038356,9]
[355473701,1741194638067,-483.92603878,0.00038356,9]
[355473702,1741194638077,-516.40833981,0.00038356,9]
[355473703,1741194638087,-500.0,0.00038356,9]
[355473704,1741194638098,-500.0,0.00038356,9]
[355473705,1741194638107,-467.2554633,0.00038356,9]
[355473706,1741194638119,-47.17651278,0.00038356,9]
[355473707,1741194638129,-506.29164687,0.00038356,9]
[355473708,1741194638139,-500.0,0.00038356,9]
[355473709,1741194638148,-500.0,0.00038356,9]
[355473710,1741194638158,-500.0,0.00038356,9]
[355473711,1741194638168,-500.0,0.00038356,9]
[355473712,1741194638177,-509.2628223,0.00038356,9]
[355473713,1741194638187,-500.0,0.00038356,9]
[355473714,1741194638198,-500.0,0.00038356,9]
[355473715,1741194638208,-500.0,0.00038356,9]
[355473716,1741194638219,-514.19740506,0.00038356,9]
[355473717,1741194638228,-500.0,0.00038356,9]
[355473718,1741194638238,-500.0,0.00038356,9]
[355473719,1741194638248,-500.0,0.00038356,9]
[355473720,1741194638257,-500.0,0.00038356,9]
[355473721,1741194638267,-573.4185782,0.00038356,9]
[355473722,1741194638276,-504.53128391,0.00038356,9]
[355473723,1741194638286,-503.64426351,0.00038356,9]
[355473724,1741194638296,-500.0,0.00038356,9]
[355473725,1741194638305,-500.0,0.00038356,9]
[355473726,1741194638315,-500.0,0.00038356,9]
[355473727,1741194638324,-500.0,0.00038356,9]
[355473728,1741194638333,-500.0,0.00038356,9]
[355473729,1741194638352,-500.0,0.00038356,9]
[355473730,1741194638363,-500.0,0.00038356,9]
[355473731,1741194638373,-500.0,0.00038356,9]
[355473732,1741194638383,-500.0,0.00038356,9]
[355473733,1741194638392,-500.0,0.00038356,9]
[355473734,1741194638403,-938.23,0.00038356,9]
[355473735,1741194638417,-500.0,0.00038356,9]
[355473736,1741194638428,-568.96444237,0.00038356,9]
[355473737,1741194638438,-500.0,0.00038356,9]
[355473738,1741194638447,-500.0,0.00038356,9]
[355473739,1741194638458,-729.91,0.00038356,9]
[355473740,1741194638468,-500.0,0.00038356,9]
[355473741,1741194638478,-575.0655614,0.00038356,9]
[355473742,1741194638490,-500.0,0.00038356,9]
[355473743,1741194638500,-500.0,0.00038356,9]
[355473744,1741194638510,-507.96898743,0.00038356,9]
[355473745,1741194638520,-500.0,0.00038356,9]
[355473746,1741194638530,-603.04,0.00038356,9]
[355473747,1741194638540,-508.52594576,0.00038356,9]
[355473748,1741194638550,-500.0,0.00038356,9]
[355473749,1741194638560,-500.0,0.00038356,9]
[355473750,1741194638569,-500.0,0.00038356,9]
[355473751,1741194638579,-500.0,0.00038356,9]
[355473752,1741194638590,-261.27830482,0.00038356,9]
[355473753,1741194638603,-500.0,0.00038356,9]
[355473754,1741194638613,-500.0,0.00038356,9]
[355473755,1741194638623,-500.0,0.00038356,9]
[355473756,1741194638632,-500.0,0.00038356,9]
[355473757,1741194638642,-447.40666548,0.00038356,9]
[355473758,1741194638651,-500.0,0.00038356,9]
[355473759,1741194638661,-503.32198273,0.00038356,9]
[355473760,1741194638671,-500.0,0.00038356,9]
[355473761,1741194638680,-500.0,0.00038356,9]
[355473762,1741194638690,-500.0,0.00038356,9]
[355473763,1741194638700,-500.0,0.00038356,9]
[355473764,1741194638710,-500.0,0.00038356,9]
[355473765,1741194638719,-500.0,0.00038356,9]
[355473766,1741194638729,-510.25,0.00038356,9]
[355473767,1741194638738,-616.01564794,0.00038356,9]
[355473768,1741194638748,-500.0,0.00038356,9]
[355473769,1741194638757,-507.27148912,0.00038356,9]
[355473770,1741194638767,-500.0,0.00038356,9]
[355473771,1741194638776,-500.0,0.00038356,9]
[355473772,1741194638785,-500.0,0.00038356,9]
[355473773,1741194638795,-502.04221233,0.00038356,9]
[355473774,1741194638804,-500.0,0.00038356,9]
[355473775,1741194638814,-500.0,0.00038356,9]
[355473776,1741194638823,-500.0,0.00038356,9]
[355473777,1741194638833,-500.0,0.00038356,9]
[355473778,1741194638842,-500.0,0.00038356,9]
[355473779,1741194638854,-383.57457039,0.00038356,9]
[355473780,1741194638864,-500.0,0.00038356,9]
[355473781,1741194638875,-500.0,0.00038356,9]
[355473782,1741194638885,-575.01,0.00038356,9]
[355473783,1741194638895,-500.0,0.00038356,9]
[355473784,1741194638905,-500.0,0.00038356,9]
[355473785,1741194638914,-500.0,0.00038356,9]
[355473786,1741194638924,-500.0,0.00038356,9]
[355473787,1741194638933,-500.0,0.00038356,9]
[355473788,1741194638943,-500.0,0.00038356,9]
[355473789,1741194638953,-643.78308562,0.00038356,9]
[355473790,1741194638962,-500.0,0.00038356,9]
[355473791,1741194638976,-500.0,0.00038356,9]
[355473792,1741194638986,-500.0,0.00038356,9]
[355473793,1741194638995,-500.0,0.00038356,9]
[355473794,1741194639005,-39.4599625,0.00038356,9]
[355474137,1741194643016,-460.5400375,0.00038356,9]
[355474139,1741194643026,-500.0,0.00038356,9]
[355474141,1741194643035,-375.5677225,0.00038356,9]
[355474143,1741194643048,-124.4322775,0.00038356,9]
[355474146,1741194643058,-378.64560872,0.00038356,9]
[355474147,1741194643067,-515.34849456,0.00038356,9]
[355474149,1741194643077,-500.0,0.00038356,9]
[355474152,1741194643087,-734.64,0.00038356,9]
[355474153,1741194643099,-500.0,0.00038356,9]
[355474156,1741194643109,-500.0,0.00038356,9]
[355474159,1741194643118,-500.0,0.00038356,9]
[355474162,1741194643127,-500.0,0.00038356,9]
[355474165,1741194643137,-573.67497039,0.00038356,9]
[355474168,1741194643146,-573.23,0.00038356,9]
[355474171,1741194643156,-500.0,0.00038356,9]
[355474176,1741194643166,-500.0,0.00038356,9]
[355474178,1741194643175,-500.0,0.00038356,9]
[355474181,1741194643185,-664.86,0.00038356,9]
[355474184,1741194643194,-500.0,0.00038356,9]
[355474186,1741194643204,-500.0,0.00038356,9]
[355474188,1741194643213,-500.0,0.00038356,9]
[355474190,1741194643222,-500.0,0.00038356,9]
[355474193,1741194643232,-500.0,0.00038356,9]
[355474194,1741194643241,-898.85,0.00038356,9]
[355474197,1741194643251,-500.0,0.00038356,9]
[355474199,1741194643260,-500.0,0.00038356,9]
[355474200,1741194643269,-502.33122365,0.00038356,9]
[355474222,1741194643469,-500.0,0.00038356,9]
[355474224,1741194643479,-843.01,0.00038356,9]
[355474226,1741194643489,-512.26505903,0.00038356,9]
[355474229,1741194643499,-500.0,0.00038356,9]
[355474231,1741194643509,-592.88,0.00038356,9]
[355474233,1741194643519,-500.0,0.00038356,9]
[355474235,1741194643529,-782.78,0.00038356,9]
[355474237,1741194643538,-542.07653364,0.00038356,9]
[355474239,1741194643547,-500.0,0.00038356,9]
[355474241,1741194643557,-500.0,0.00038356,9]
[355474243,1741194643566,-500.0,0.00038356,9]
[355474245,1741194643575,-500.0,0.00038356,9]
[355474247,1741194643585,-500.0,0.00038356,9]
[355474249,1741194643594,-500.0,0.00038356,9]
[355474251,1741194643606,-1599.87,0.00038356,9]
[355474253,1741194643615,-500.0,0.00038356,9]
[355474255,1741194643625,-500.0,0.00038356,9]
[355474257,1741194643634,-500.0,0.00038356,9]
[355474260,1741194643653,-500.0,0.00038356,9]
[355474262,1741194643664,-500.0,0.00038356,9]
[355474264,1741194643673,-500.0,0.00038356,9]
[355474266,1741194643685,-500.0,0.00038356,9]
[355474268,1741194643695,-500.0,0.00038356,9]
[355474270,1741194643705,-500.0,0.00038356,9]
[355474273,1741194643716,-500.0,0.00038356,9]
[355474275,1741194643726,-500.0,0.00038356,9]
[355474277,1741194643736,-500.0,0.00038356,9]
[355474279,1741194643746,-500.0,0.00038356,9]
[355474281,1741194643756,-564.87,0.00038356,9]
[355474283,1741194643767,-500.0,0.00038356,9]
[355474285,1741194643777,-500.0,0.00038356,9]
[355474287,1741194643787,-500.0,0.00038356,9]
[355474289,1741194643797,-500.0,0.00038356,9]
[355474291,1741194643807,-509.00343028,0.00038356,9]
[355474293,1741194643817,-500.0,0.00038356,9]
[355474295,1741194643827,-500.0,0.00038356,9]
[355474297,1741194643838,-524.63307505,0.00038356,9]
[355474300,1741194643852,-855.88,0.00038356,9]
[355474302,1741194643862,-500.0,0.00038356,9]
[355474304,1741194643871,-500.0,0.00038356,9]
[355474306,1741194643881,-500.0,0.00038356,9]
[355474308,1741194643891,-500.0,0.00038356,9]
[355474310,1741194643901,-506.90269467,0.00038356,9]
[355474312,1741194643911,-500.0,0.00038356,9]
[355474314,1741194643921,-510.5346889,0.00038356,9]
[355474316,1741194643931,-500.0,0.00038356,9]
[355474318,1741194643941,-500.0,0.00038356,9]
[355474320,1741194643951,-500.0,0.00038356,9]
[355474322,1741194643961,-963.23,0.00038356,9]
[355474324,1741194643971,-500.0,0.00038356,9]
[355474326,1741194643980,-500.0,0.00038356,9]
[355474328,1741194643990,-500.0,0.00038356,9]
[355474330,1741194643999,-500.0,0.00038356,9]
[355474332,1741194644009,-215.07005909,0.00038356,9]
[355474334,1741194644018,-500.0,0.00038356,9]
[355474336,1741194644028,-500.0,0.00038356,9]
[355474338,1741194644037,-667.7,0.00038356,9]
[355474340,1741194644047,-251.20332346,0.00038356,9]
[355474342,1741194644056,-576.68,0.00038356,9]
[355474344,1741194644066,-508.75460743,0.00038356,9]
[355474346,1741194644075,-500.0,0.00038356,9]
[355474349,1741194644085,-500.0,0.00038356,9]
[355474351,1741194644095,-501.0669255,0.00038356,9]
[355474353,1741194644108,-500.0,0.00038356,9]
[355474355,1741194644118,-500.0,0.00038356,9]
[355474357,1741194644127,-638.11,0.00038356,9]
[355474359,1741194644137,-500.0,0.00038356,9]
[355474361,1741194644146,-918.36,0.00038356,9]
[355474363,1741194644156,-500.0,0.00038356,9]
[355474365,1741194644166,-536.64,0.00038356,9]
[355474367,1741194644175,-500.0,0.00038356,9]
[355474369,1741194644185,-500.0,0.00038356,9]
[355474371,1741194644194,-500.0,0.00038356,9]
[355474373,1741194644204,-500.0,0.00038356,9]
[355474375,1741194644214,-500.0,0.00038356,9]
[355474377,1741194644223,-500.0,0.00038356,9]
[355474379,1741194644232,-262.24514102,0.00038356,9]
[355474381,1741194644242,-500.0,0.00038356,9]
[355474383,1741194644252,-500.0,0.00038356,9]
[355474385,1741194644262,-1130.52,0.00038356,9]
[355474387,1741194644271,-500.0,0.00038356,9]
[355474389,1741194644281,-7219.22,0.00038356,9]
[355474391,1741194644291,-500.0,0.00038356,9]
[355474393,1741194644301,-1851.63,0.00038356,9]
[355474395,1741194644311,-500.0,0.00038356,9]
[355474397,1741194644321,-155.10090712,0.00038356,9]
[355474513,1741194645912,-344.89909288,0.00038356,9]
[355474514,1741194645922,-500.0,0.00038356,9]
[355474515,1741194645932,-392.83132707,0.00038356,9]
[355474516,1741194645966,-2049.80000004,0.00038356,9]
[355474517,1741194645978,-234.68867289,0.00038356,9]
[355474518,1741194645987,-660.52,0.00038356,9]
[355474519,1741194645996,-500.0,0.00038356,9]
[355474520,1741194646006,-500.0,0.00038356,9]
[355474521,1741194646016,-500.0,0.00038356,9]
[355474522,1741194646027,-500.0,0.00038356,9]
[355474523,1741194646037,-1153.3,0.00038356,9]
[355474524,1741194646046,-500.0,0.00038356,9]
[355474525,1741194646056,-500.0,0.00038356,9]
[355474526,1741194646066,-500.0,0.00038356,9]
[355474528,1741194646076,-3346.08984331,0.00038356,7]
[355474530,1741194646088,-8998.9,0.00038356,7]
[355474893,1741195832252,-1032.59090621,0.0002799,2]
[355474968,1741195838050,-1326.81741645,0.0002799,2]
[355474969,1741195838163,-877.53662046,0.0002799,2]
[355474970,1741195838173,-1144.53921446,0.000325,30]
[355474971,1741195838182,-296.13859329,0.00034,30]
[355475013,1741195840438,-1000.9806409,0.00034,30]
[355475031,1741195843089,-107.73802144,0.00034,30]
[355475032,1741195843132,-595.49976501,0.00034,30]
[355475033,1741195843142,-392.11220118,0.00035259,2]
[355475285,1741195846115,-7.88779882,0.00035259,2]
[355475287,1741195846125,-203.461447,0.00035658,2]
[355475289,1741195846135,-500.0,0.0003589,2]
[355475291,1741195846145,-162.0,0.0003589,2]
[355475293,1741195846154,-162.0,0.00036,2]
[355475295,1741195846164,-191.679448,0.000362,120]
[355475297,1741195846174,-150.0,0.00036256,2]
[355475299,1741195846183,-162.0,0.00037397,2]
[355475300,1741195846192,-560.0,0.00037795,2]
[355475302,1741195846202,-699.67789206,0.00037945,2]
[355475304,1741195846211,-1000.0,0.00038,120]
[355475306,1741195846221,-694.99341412,0.00038,15]
[355475465,1741197032417,-1094.4703517,0.00035806,2]
[355475466,1741197032427,-191.679448,0.00035829,120]
[355475467,1741197032437,-203.461448,0.00035886,2]
[355475468,1741197032447,-493.726356,0.0003589,2]
[355475469,1741197032456,-150.0,0.000359,2]
[355475470,1741197032466,-300.0,0.0003788,2]
[355475471,1741197032475,-451.18308418,0.000379,8]
[355475472,1741197032484,-400.0,0.00037999,2]
[355475473,1741197032494,-8297.86041359,0.00037999,5]
[355475474,1741197032503,-256.96972986,0.00038,5]
[355475475,1741197032513,-5026.339,0.00038,120]
[355475476,1741197032522,-3622.25029627,0.00038,15]
[355475512,1741197038232,-1211.85689634,0.00038,15]
[355475652,1741197040611,-24701.67711098,0.00038,15]
[355475654,1741197040620,-154.0,0.00038,14]
[355475656,1741197040630,-154.0,0.00038,14]
[355475658,1741197040639,-154.0,0.00038,14]
[355475660,1741197040648,-154.0,0.00038,14]
[355475662,1741197040658,-154.0,0.00038,14]
[355475664,1741197040667,-154.0,0.00038,14]
[355475666,1741197040677,-154.0,0.00038,14]
[355475668,1741197040686,-154.0,0.00038,14]
[355475670,1741197040696,-154.0,0.00038,14]
[355475672,1741197040705,-159.0,0.00038,14]
[355475674,1741197040715,-4731.14657627,0.00038045,2]
[355475676,1741197040724,-172.58351857,0.00038073,2]
[355475678,1741197040733,-416.66666667,0.00038096,2]
[355475680,1741197040743,-160.0,0.00038096,2]
[355475682,1741197040752,-355.7408509,0.00038125,4]
[355475684,1741197040761,-9675.5046769,0.00038146,3]
[355475686,1741197040771,-416.66666667,0.00038146,3]
[355475688,1741197040780,-171.98,0.00038146,3]
[355475690,1741197040790,-515.98,0.00038146,3]
[355475692,1741197040799,-500.0,0.00038155,15]
[355475694,1741197040810,-500.0,0.00038155,2]
[355475696,1741197040819,-500.0,0.00038155,15]
[355475698,1741197040828,-500.0,0.00038155,2]
[355475700,1741197040837,-500.0,0.00038155,15]
[355475702,1741197040847,-500.0,0.00038155,2]
[355475704,1741197040856,-500.0,0.00038155,15]
[355475706,1741197040866,-500.0,0.00038155,2]
[355475708,1741197040875,-500.0,0.00038155,2]
[355475710,1741197040886,-500.0,0.00038155,15]
[355475712,1741197040896,-221.25712139,0.00038155,2]
[355475714,1741197040905,-500.0,0.00038155,15]
[355475716,1741197040915,-500.0,0.00038155,15]
[355475718,1741197040924,-500.0,0.00038155,2]
[355475720,1741197040933,-500.0,0.00038155,15]
[355475722,1741197040943,-500.0,0.00038155,2]
[355475724,1741197040952,-500.0,0.00038155,15]
[355475726,1741197040961,-500.0,0.00038155,15]
[355475728,1741197040970,-500.0,0.00038155,2]
[355475730,1741197040979,-500.0,0.00038155,15]
[355475732,1741197040988,-500.0,0.00038155,2]
[355475734,1741197040998,-441.42721781,0.00038155,15]
[355475736,1741197041007,-500.0,0.00038155,2]
[355475738,1741197041016,-500.0,0.00038155,15]
[355475740,1741197041026,-500.0,0.00038155,2]
[355475742,1741197041035,-500.0,0.00038155,2]
[355475744,1741197041044,-641.82417853,0.00038155,2]
[355475746,1741197041055,-500.0,0.00038155,2]
[355475748,1741197041064,-500.0,0.00038155,2]
[355475750,1741197041073,-500.0,0.00038155,2]
[355475752,1741197041082,-500.0,0.00038155,2]
[355475754,1741197041092,-500.0,0.00038155,2]
[355475756,1741197041101,-500.0,0.00038155,2]
[355475758,1741197041111,-500.0,0.00038155,2]
[355475760,1741197041120,-500.0,0.00038155,2]
[355475762,1741197041129,-939.96,0.00038155,120]
[355475764,1741197041139,-19586.12214915,0.00038156,2]
[355475981,1741197043437,-8762.80685979,0.00038156,2]
[355476391,1741198015103,-163.0,0.00035,120]
[355476392,1741198015125,-100.04555689,0.00035586,2]
[355476437,1741198232517,-133.23615781,0.00035586,2]
[355476438,1741198232527,-191.679448,0.00035654,120]
[355476439,1741198232537,-294.77289609,0.00035706,2]
[355476440,1741198232547,-232.80469822,0.00035771,2]
[355476441,1741198232558,-0.53620578,0.00035771,2]
[355476442,1741198232568,-2749.46379422,0.00035779,64]
[355476512,1741198238386,-7535.67900988,0.00035779,64]
[355476513,1741198238396,-469.040038,0.0003589,2]
[355476514,1741198238407,-318.3035181,0.00037588,4]
[355476515,1741198238416,-518.5,0.00037807,30]
[355476516,1741198238426,-443.15024606,0.000379,8]
[355476517,1741198238436,-199.0,0.00038,2]
[355476518,1741198238446,-416.66666667,0.00038033,2]
[355476519,1741198238455,-800.0,0.00038033,2]
[355476520,1741198238465,-864.0,0.00038033,2]
[355476521,1741198238474,-933.12,0.00038033,2]
[355476522,1741198238495,-1600.0,0.00038033,2]
[355476523,1741198238506,-167.82405,0.00038033,2]
[355476524,1741198238516,-936.73674591,0.00038045,2]
[355476525,1741198238526,-160.18,0.00038045,2]
[355476526,1741198238536,-722.83178585,0.00038045,2]
[355476527,1741198238546,-5805.30280612,0.00038046,3]
[355476528,1741198238555,-343.96,0.00038046,3]
[355476529,1741198238565,-160.0,0.00038046,2]
[355476530,1741198238575,-500.0,0.00038055,15]
[355476531,1741198238586,-500.0,0.00038055,15]
[355476532,1741198238596,-500.0,0.00038055,2]
[355476533,1741198238610,-219.78947292,0.00038055,15]
[355476534,1741198238619,-500.0,0.00038055,15]
[355476535,1741198238629,-500.0,0.00038055,15]
[355476536,1741198238638,-500.0,0.00038055,15]
[355476537,1741198238650,-500.0,0.00038055,15]
[355476538,1741198238660,-500.0,0.00038055,15]
[355476539,1741198238670,-500.0,0.00038055,15]
[355476540,1741198238680,-500.0,0.00038055,15]
[355476541,1741198238690,-500.0,0.00038055,2]
[355476542,1741198238700,-500.0,0.00038055,15]
[355476543,1741198238710,-500.0,0.00038055,15]
[355476544,1741198238720,-500.0,0.00038055,15]
[355476545,1741198238730,-500.0,0.00038055,2]
[355476546,1741198238740,-215.71413531,0.00038055,15]
[355476547,1741198238750,-368.61923875,0.00038055,15]
[355476548,1741198238760,-500.0,0.00038055,15]
[355476549,1741198238770,-500.0,0.00038055,15]
[355476550,1741198238779,-500.0,0.00038055,2]
[355476551,1741198238789,-500.0,0.00038055,15]
[355476552,1741198238799,-506.15993711,0.00038055,15]
[355476553,1741198238809,-500.0,0.00038055,15]
[355476554,1741198238819,-500.0,0.00038055,15]
[355476555,1741198238828,-500.0,0.00038055,2]
[355476556,1741198238838,-500.0,0.00038055,15]
[355476557,1741198238848,-500.0,0.00038055,15]
[355476558,1741198238860,-222.2729407,0.00038055,15]
[355476559,1741198238870,-500.0,0.00038055,15]
[355476560,1741198238880,-500.0,0.00038055,2]
[355476561,1741198238890,-500.0,0.00038055,15]
[355476562,1741198238900,-500.0,0.00038055,15]
[355476563,1741198238909,-267.32287884,0.00038055,2]
[355476564,1741198238919,-500.0,0.00038055,15]
[355476565,1741198238929,-500.0,0.00038055,15]
[355476566,1741198238938,-500.0,0.00038055,15]
[355476567,1741198238948,-500.0,0.00038055,15]
[355476568,1741198238958,-529.20003389,0.00038055,15]
[355476569,1741198238968,-500.0,0.00038055,15]
[355476570,1741198238978,-500.0,0.00038055,15]
[355476571,1741198238988,-500.0,0.00038055,15]
[355476572,1741198238998,-500.0,0.00038055,15]
[355476573,1741198239007,-500.0,0.00038055,15]
[355476574,1741198239017,-500.0,0.00038055,15]
[355476575,1741198239027,-500.0,0.00038055,15]
[355476576,1741198239037,-500.0,0.00038055,15]
[355476577,1741198239047,-500.0,0.00038055,15]
[355476578,1741198239057,-500.0,0.00038055,15]
[355476579,1741198239067,-500.0,0.00038055,15]
[355476580,1741198239076,-500.0,0.00038055,15]
[355476581,1741198239086,-500.0,0.00038055,2]
[355476582,1741198239095,-500.0,0.00038055,2]
[355476583,1741198239108,-500.0,0.00038055,2]
[355476584,1741198239118,-500.0,0.00038055,2]
[355476585,1741198239128,-500.0,0.00038055,2]
[355476586,1741198239138,-4148.9302068,0.00038056,5]
[355476587,1741198239148,-222000.0,0.00038056,2]
[355476588,1741198239158,-151.0,0.00038056,14]
[355476589,1741198239168,-151.0,0.00038056,14]
[355476590,1741198239178,-284.25,0.00038056,14]
[355476591,1741198239187,-284.25,0.00038056,14]
[355476592,1741198239197,-151.0,0.00038056,14]
[355476593,1741198239207,-552.78280078,0.00038073,5]
[355476594,1741198239216,-240.713506,0.00038073,5]
[355476595,1741198239226,-500.0,0.00038073,5]
[355476596,1741198239235,-258.6975877,0.00038073,5]
[355476597,1741198239245,-500.0,0.00038073,5]
[355476598,1741198239254,-500.0,0.00038073,5]
[355476599,1741198239264,-500.0,0.00038073,5]
[355476600,1741198239273,-285.11917459,0.00038073,5]
[355476601,1741198239283,-500.0,0.00038073,5]
[355476602,1741198239292,-500.0,0.00038073,5]
[355476603,1741198239302,-500.38861504,0.00038073,5]
[355476604,1741198239311,-504.49758211,0.00038073,5]
[355476605,1741198239320,-500.0,0.00038073,5]
[355476606,1741198239330,-500.0,0.00038073,5]
[355476607,1741198239339,-500.0,0.00038073,5]
[355476608,1741198239349,-500.0,0.00038073,5]
[355476609,1741198239359,-502.99280013,0.00038073,5]
[355476610,1741198239369,-2000.0,0.0003815,2]
[355476611,1741198239378,-151.0,0.0003815,14]
[355476612,1741198239387,-774.97801901,0.00038155,2]
[355476613,1741198239397,-150.0,0.00038155,2]
[355476614,1741198239407,-500.0,0.00038155,7]
[355476615,1741198239417,-151.0,0.00038155,14]
[355476616,1741198239426,-155.221636,0.00038155,14]
[355476617,1741198239436,-151.0,0.00038155,14]
[355476618,1741198239446,-1000.0,0.00038155,120]
[355476619,1741198239456,-1451.32570153,0.00038163,3]
[355476620,1741198239465,-500.0,0.00038173,5]
[355476621,1741198239476,-223.5266452,0.00038173,5]
[355476622,1741198239485,-500.0,0.00038173,5]
[355476623,1741198239495,-500.0,0.00038173,5]
[355476624,1741198239504,-500.0,0.00038173,30]
[355476625,1741198239515,-151.0,0.00038173,14]
[355476626,1741198239524,-284.25,0.00038173,14]
[355476627,1741198239534,-284.25,0.00038173,14]
[355476628,1741198239544,-1000.0,0.00038183,120]
[355476629,1741198239553,-1000.0,0.0003821,120]
[355476630,1741198239563,-1000.0,0.00038237,120]
[355476631,1741198239572,-3000.0,0.00038256,2]
[355476632,1741198239581,-1000.0,0.00038265,120]
[355476633,1741198239594,-151.0,0.00038265,14]
[355476634,1741198239606,-1000.0,0.00038292,120]
[355476635,1741198239615,-1000.0,0.00038301,2]
[355476636,1741198239625,-1000.0,0.00038301,2]
[355476637,1741198239635,-1000.0,0.00038301,2]
[355476638,1741198239645,-1000.0,0.00038301,2]
[355476639,1741198239654,-1000.0,0.00038301,2]
[355476640,1741198239665,-1000.0,0.00038301,2]
[355476641,1741198239677,-1000.0,0.00038301,2]
[355476642,1741198239687,-1000.0,0.00038301,2]
[355476643,1741198239696,-512.4086551,0.00038301,2]
[355476644,1741198239706,-639.1,0.0003832,120]
[355476645,1741198239716,-14513.2570153,0.00038346,3]
[355476646,1741198239726,-416.66666667,0.00038346,3]
[355476647,1741198239736,-151.0,0.00038346,14]
[355476648,1741198239746,-151.0,0.00038346,14]
[355476649,1741198239756,-151.0,0.00038346,14]
[355476650,1741198239765,-284.25,0.00038346,14]
[355476651,1741198239775,-284.25,0.00038346,14]
[355476652,1741198239784,-151.0,0.00038346,14]
[355476653,1741198239795,-421.91004778,0.00038355,15]
[355476654,1741198239804,-528.23845716,0.00038355,15]
[355476655,1741198239814,-500.0,0.00038355,15]
[355476656,1741198239823,-360.06587735,0.00038355,15]
[355476657,1741198239833,-341.14189434,0.00038355,15]
[355476658,1741198239843,-500.0,0.00038355,15]
[355476659,1741198239852,-1000.0,0.00038355,120]
[355476660,1741198239867,-200.9193797,0.00038355,2]
[355476661,1741198239876,-518.14821111,0.00038356,9]